[Event "Mitropa Cup Open 2024"]
[Site "Apolda"]
[Date "2024.02.18"]
[Round "4.4"]
[White "Svane, Frederik"]
[Black "Bochnicka, Vladimir"]
[Result "0-1"]
[ECO "B30"]
[WhiteElo "2625"]
[BlackElo "2398"]
[Annotator "RC"]
[PlyCount "122"]
[EventDate "2024.02.15"]
[EventType "team-tourn"]
[EventCountry "GER"]
[SourceTitle "playchess.com"]
[Source "ChessBase"]
[SourceQuality "1"]
[WhiteTeam "Germany"]
[BlackTeam "Slovakia"]
[WhiteTeamCountry "GER"]
[BlackTeamCountry "SVK"]
[TimeControl "40/5400+30:1800+30"]

1. e4 {[%emt 0:00:06]} c5 {[%emt 0:00:08]} 2. Nf3 {[%emt 0:00:10]} Nc6 {[%emt 0:00:10]} 3. Bb5 {[%emt 0:00:09]} e6 {[%emt 0:00:18]} 4. O-O {[%emt 0:00:10]} Nge7 {[%emt 0:00:07]} 5. Re1 {[%emt 0:00:05]} a6 {[%emt 0:00:17]} 6. Bf1 {[%emt 0:00:07]} d5 {[%emt 0:00:33]} 7. exd5 {[%emt 0:00:21]} Nxd5 {[%emt 0:00:07]} 8. d4 {[%emt 0:00:05]} Nf6 {[%emt 0:00:15]} 9. Be3 {[%emt 0:00:12]} cxd4 {[%emt 0:00:33]} 10. Nxd4 {[%emt 0:00:07]} Bd7 {[%emt 0:00:16]} 11. c4 {[%emt 0:00:51]} Qc7 {[%emt 0:00:43]} 12. Nc3 {[%emt 0:04:48]} Be7 {[%emt 0:01:04]} 13. h3 {[%emt 0:02:05]} O-O {[%emt 0:00:26]} 14. Nf3 {[%emt 0:01:40]} Rfd8 {[%emt 0:02:00]} 15. a3 {[%emt 0:02:24]} Na5 {[%emt 0:02:32]} 16. Rc1 {[%emt 0:06:29]} Be8 {[%emt 0:04:20]} 17. Qc2 {[%emt 0:05:16]} Rac8 {[%emt 0:02:16]} 18. Nd2 {[%emt 0:13:47]} Nc6 {[%emt 0:08:21]} 19. Nf3 {[%emt 0:01:51]} Nd7 {[%emt 0:16:10]} 20. Na4 {[%emt 0:09:05]} h6 {[%emt 0:13:43]} 21. b4 {[%emt 0:02:01]} Bf6 {[%emt 0:01:53]} 22. Qe4 {[%emt 0:11:46]} Nce5 {[%emt 0:06:36]} 23. Nd2 {[%emt 0:15:00]} Nf8 {[%emt 0:09:29]} 24. Nb6 {[%emt 0:06:43]} Rxd2 {[%emt 0:06:45]} 25. Nxc8 {[%emt 0:00:03]} Bc6 {[%emt 0:00:08]} 26. Qf4 {[%emt 0:00:39]} Nfg6 {[%emt 0:00:19]} 27. Qh2 {[%emt 0:09:22]} Nh4 {[%emt 0:09:47]} 28. Kh1 {[%emt 0:00:03]} Qxc8 {[%emt 0:02:23]} 29. Bxd2 {[%emt 0:00:04]} Nef3 {[%emt 0:00:04]} 30. Qd6 {[%emt 0:03:16]} Be7 {[%emt 0:05:15]} 31. Qf4 {[%emt 0:06:14]} Bg5 {[%emt 0:00:37]} 32. gxf3 {[%emt 0:00:43]} Bxf4 {[%emt 0:00:38]} 33. Bxf4 {[%emt 0:00:01]} Nxf3 {[%emt 0:01:01]} 34. Re3 {[%emt 0:00:11]} e5 {[%emt 0:00:48]} 35. Bh2 {[%emt 0:01:22]} Qf5 {[%emt 0:00:35]} 36. b5 {[%emt 0:00:02]} Be4 {[%emt 0:01:49]} 37. Bg2 {[%emt 0:00:11]} Ng5 {[%emt 0:01:20]} 38. Kg1 {[%emt 0:00:33]} Bxg2 {[%emt 0:00:12]} 39. Kxg2 {[%emt 0:00:02]} Nxh3 {[%emt 0:00:18]} 40. Bg3 {[%emt 0:01:09]} Nf4+ {[%emt 0:02:22]} 41. Kg1 {[%emt 0:03:36]} axb5 {[%emt 0:03:41]} 42. cxb5 {[%emt 0:00:09]} Qg4 {[%emt 0:00:59]} 43. Rxe5 {[%emt 0:03:46]} Ne2+ {[%emt 0:01:34]} 44. Rxe2 {[%emt 0:00:01]} Qxe2 {[%emt 0:00:07]} 45. a4 {[%emt 0:00:04]} h5 {[%emt 0:01:29]} 46. b6 {[%emt 0:03:13]} Qg4 {[%emt 0:01:09]} 47. a5 {[%emt 0:00:06]} Qa4 {[%emt 0:05:29]} 48. Rc5 {[%emt 0:12:57]} f6 {[%emt 0:17:52]} 49. Rc7 {[%emt 0:06:06]} h4 {[%emt 0:01:48]} 50. Bxh4 {[%emt 0:00:03]} Qxh4 {[%emt 0:01:06]} 51. a6 {[%emt 0:00:01]} Qg5+ {[%emt 0:00:35]} 52. Kh1 {[%emt 0:01:20]} Qd5+ {[%emt 0:01:03]} 53. Kg1 {[%emt 0:00:06]} Qd1+ {[%emt 0:03:30]} 54. Kg2 Qd5+ {[%emt 0:00:00]} 55. Kg1 {[%emt 0:00:01]} Qg5+ {[%emt 0:00:00]} 56. Kh1 {[%emt 0:00:26]} Qh5+ {[%emt 0:00:05]} 57. Kg1 {[%emt 0:01:34]} Qg6+ {[%emt 0:00:04]} 58. Kh2 {[%emt 0:00:03]} Qh7+ {[%emt 0:00:04]} 59. Kg2 {[%emt 0:04:27]} Qe4+ {[%emt 0:00:06]} 60. f3 {[%emt 0:00:18]} Qe2+ {[%emt 0:00:04]} 61. Kg3 {[%emt 0:00:04]} Qxa6 {[%emt 0:00:07]} 0-1

[Event "Mitropa Cup Open 2024"]
[Site "Apolda"]
[Date "2024.02.18"]
[Round "4.5"]
[White "Krstulovic, Alex"]
[Black "Brunello, Sabino"]
[Result "1/2-1/2"]
[ECO "D66"]
[WhiteElo "2414"]
[BlackElo "2512"]
[Annotator "RC"]
[PlyCount "41"]
[EventDate "2024.02.15"]
[EventType "team-tourn"]
[EventCountry "GER"]
[SourceTitle "playchess.com"]
[Source "ChessBase"]
[SourceQuality "1"]
[WhiteTeam "Hungary"]
[BlackTeam "Italy"]
[WhiteTeamCountry "HUN"]
[BlackTeamCountry "ITA"]
[TimeControl "40/5400+30:1800+30"]

1. d4 {[%emt 0:00:04]} Nf6 {[%emt 0:01:38]} 2. Nf3 {[%emt 0:00:09]} d5 {[%emt 0:00:12]} 3. c4 {[%emt 0:00:06]} e6 {[%emt 0:01:10]} 4. Nc3 {[%emt 0:00:06]} c6 {[%emt 0:05:13]} 5. Bg5 {[%emt 0:00:19]} Be7 {[%emt 0:00:43]} 6. e3 {[%emt 0:00:17]} Nbd7 {[%emt 0:00:25]} 7. Bd3 {[%emt 0:01:05]} h6 {[%emt 0:00:08]} 8. Bh4 {[%emt 0:00:05]} O-O {[%emt 0:02:21]} 9. O-O {[%emt 0:00:13]} dxc4 {[%emt 0:00:33]} 10. Bxc4 {[%emt 0:00:05]} b5 {[%emt 0:00:04]} 11. Bd3 {[%emt 0:04:02]} Bb7 {[%emt 0:00:09]} 12. Rc1 {[%emt 0:02:00]} Rc8 {[%emt 0:02:51]} 13. Qe2 {[%emt 0:02:54]} b4 {[%emt 0:15:31]} 14. Na4 {[%emt 0:05:23]} Qa5 {[%emt 0:24:18]} 15. Bxf6 {[%emt 0:08:09]} gxf6 {[%emt 0:00:18]} 16. Nd2 {[%emt 0:06:36]} Qxa4 {[%emt 0:11:59]} 17. Qg4+ {[%emt 0:00:15]} Kh8 {[%emt 0:00:05]} 18. Qh4 {[%emt 0:00:03]} Kg7 {[%emt 0:00:12]} 19. Qg4+ {[%emt 0:00:04]} Kh8 {[%emt 0:00:03]} 20. Qh4 {[%emt 0:00:05]} Kg7 {[%emt 0:00:04]} 21. Qg4+ {[%emt 0:00:05]} 1/2-1/2

[Event "Mitropa Cup Open 2024"]
[Site "Apolda"]
[Date "2024.02.18"]
[Round "4.6"]
[White "David, Alberto"]
[Black "Juhasz, Agoston"]
[Result "1/2-1/2"]
[ECO "B50"]
[WhiteElo "2525"]
[BlackElo "2410"]
[Annotator "TA"]
[PlyCount "104"]
[EventDate "2024.02.15"]
[EventType "team-tourn"]
[EventCountry "GER"]
[SourceTitle "playchess.com"]
[Source "ChessBase"]
[SourceQuality "1"]
[WhiteTeam "Italy"]
[BlackTeam "Hungary"]
[WhiteTeamCountry "ITA"]
[BlackTeamCountry "HUN"]
[TimeControl "40/5400+30:1800+30"]

{[%evp 26,104,-58,-45,-44,-56,-66,-65,-55,-76,-79,-83,-78,-70,-70,-79,-72,-71,-75,-249,-246,-252,-228,-293,-280,-286,-287,-331,-308,-347,-297,-370,-208,-184,-209,-210,-208,-212,-212,-204,-200,-212,-218,-220,-216,-208,-208,-212,0,-212,-185,-229,-229,-229,-229,-228,-229,-229,-228,-228,0,0,0,0,0,0,0,0,0,0,0,0,0,0,0,0,0,0,0,0,0]} 1. e4 {[%emt 0:00:09]} c5 {[%emt 0:00:19]} 2. Nf3 {[%emt 0:02:36]} d6 {[%emt 0:00:19]} 3. Bc4 {[%emt 0:00:25]} Nf6 {[%emt 0:00:31]} 4. d3 {[%emt 0:00:07]} Nc6 {[%emt 0:03:20]} 5. O-O {[%emt 0:08:58]} e6 {[%emt 0:07:03]} 6. Re1 {[%emt 0:02:30]} Be7 {[%emt 0:01:16]} 7. c3 {[%emt 0:03:07]} O-O {[%emt 0:03:35]} 8. Bb3 {[%emt 0:00:26]} b5 {[%emt 0:08:13]} 9. d4 {[%emt 0:11:01] B50: Sicilian: 2...d6, Miscellaneous.} Bb7 {[%emt 0:10:09]} 10. Nbd2 {[%emt 0:11:15]} cxd4 {[%emt 0:06:07]} 11. cxd4 {[%emt 0:00:20]} a5 {[%emt 0:02:00]} 12. Bc2 $146 {[%emt 0:05:56]} ({Predecessor:} 12. a3 Rc8 13. Bc2 a4 14. Nb1 d5 15. e5 Ne4 16. Nbd2 Nxd2 17. Bxd2 Na5 18. Qb1 {0-1 Mohammadi,H (2250)-Neelotpal,D (2406) Asia-ch 4th Doha 2003 (2)}) 12... Qc7 {[%emt 0:10:14]} 13. Bb1 {[%emt 0:03:27]} Rfc8 {[%emt 0:03:02]} 14. a3 {[%emt 0:02:11]} a4 {[%emt 0:03:05]} 15. b4 {[%emt 0:10:07]} axb3 {[%emt 0:01:02]} 16. Nxb3 {[%emt 0:00:28]} d5 {[%emt 0:02:49]} 17. e5 {[%emt 0:08:37]} Ne4 $1 {[%emt 0:00:17]} 18. Bxe4 {[%emt 0:00:16]} dxe4 {[%emt 0:00:04]} 19. Ng5 {[%emt 0:00:27]} Na5 {[%emt 0:06:44]} 20. Nxa5 {[%emt 0:07:33]} Qxa5 {[%emt 0:00:33]} 21. Nxe4 {[%emt 0:03:16]} b4 {[%emt 0:06:19]} 22. Bg5 $2 {[%emt 0:05:51]} (22. Nd6 $17 {was called for.} Bxd6 23. exd6) 22... Bxg5 $19 {[%emt 0:07:55]} 23. Nxg5 {[%emt 0:00:04]} h6 {[%emt 0:02:47]} (23... bxa3 24. Qh5 Qd5 25. Qxf7+ (25. Qxh7+ Kf8 $16) 25... Kh8 26. Re4 $11) 24. Nh3 {[%emt 0:03:15]} bxa3 {[%emt 0:00:57]} 25. Nf4 {[%emt 0:00:05]} Qa4 {[%emt 0:01:56]} 26. Qd3 {[%emt 0:00:09]} a2 {[%emt 0:01:54]} 27. h4 {[%emt 0:00:23]} Qc2 {[%emt 0:02:47]} 28. Qg3 {[%emt 0:08:39]} Qc3 {[%emt 0:05:16]} (28... Ra4 $142 29. Nh5 Qg6 (29... Rxd4 30. Qxg7#) 30. Qxg6 fxg6) 29. Qxc3 $19 {[%emt 0:01:02]} Rxc3 {[%emt 0:00:03]} 30. Re2 {[%emt 0:00:04]} Rca3 $1 {[%emt 0:00:48]} 31. f3 {[%emt 0:01:24]} R8a4 {[%emt 0:00:59]} 32. Rd2 {[%emt 0:01:03]} Ba6 {[%emt 0:01:02]} 33. Kf2 {[%emt 0:00:22]} Bc4 {[%emt 0:00:38]} 34. Rb2 {[%emt 0:00:11]} Bb3 {[%emt 0:01:38]} 35. Ne2 {[%emt 0:00:20]} Bd5 {[%emt 0:00:37]} 36. Nf4 {[%emt 0:00:50]} Bb3 {[%emt 0:00:36]} (36... Rxd4 37. Nxd5 Rxd5 (37... exd5 38. Raxa2 $11) 38. Rbxa2 Rxa2+ 39. Rxa2 $17) 37. Ne2 {[%emt 0:00:03]} g6 {[%emt 0:00:47]} 38. Nc3 {[%emt 0:00:14]} Rxd4 {[%emt 0:01:13]} 39. Nb5 {[%emt 0:01:30] [#]} Rd1 $1 {[%emt 0:00:26]} (39... Rda4 40. Nxa3 Rxa3 41. Rxb3 Rxb3 42. Rxa2) 40. Rxb3 {[%emt 0:00:28]} (40. Nxa3 $2 Rxa1 41. Nc2 Rb1 $19) 40... Rxb3 {[%emt 0:00:35]} (40... Rxa1 41. Rxa3 (41. Nxa3 $2 Rc1 $19) 41... Rb1 42. Rxa2 Rxb5 43. f4 $17) 41. Rxd1 {[%emt 0:30:04]} Rb1 {[%emt 0:06:33]} (41... Rxb5 42. Rd8+ Kg7 43. Ra8) 42. Rd8+ {[%emt 0:00:00] [#]} Kg7 $2 {[%emt 0:02:04]} (42... Kh7 $1 $19 {( -> ...Rb2+)} 43. Ra8 a1=Q (43... a1=B 44. Nd6 $11) (43... a1=R $2 44. Rxa1 Rxa1 45. Nd6 $19) 44. Rxa1 Rxa1) 43. Nc7 $11 {[%emt 0:00:00]} f5 {[%emt 0:16:05]} (43... a1=B 44. Ne8+ Kh7 45. Nf6+ Kg7 46. Rg8#) 44. Ne8+ {[%emt 0:00:00]} (44. Nxe6+ Kf7 45. Ra8 a1=R (45... a1=B 46. Nd8+ Ke7 47. f4 $16) (45... a1=Q $2 46. Rxa1 Rxa1 47. Nf4 $17) 46. Rxa1 Rxa1 $19) 44... Kf7 {[%emt 0:01:31]} 45. Nf6 $1 {[%emt 0:00:00]} (45. Nd6+ Ke7 46. Ra8 a1=Q (46... a1=B 47. Ra7+ Kd8 48. Rg7 $14) 47. Rxa1 Rxa1 $19) 45... Rb2+ {[%emt 0:02:47]} 46. Kg3 {[%emt 0:00:00]} f4+ {[%emt 0:01:13]} (46... a1=Q $5 47. Rd7+ $8 Kf8 48. Nh7+ Ke8 49. Nf6+ Kf8 50. Nh7+ Ke8 51. Nf6+ Kf8 $11) 47. Kh3 {[%emt 0:00:00]} a1=Q {[%emt 0:01:00]} 48. Rd7+ {[%emt 0:00:00]} Kf8 {[%emt 0:00:05]} 49. Nh7+ $1 {[%emt 0:00:00]} Ke8 {[%emt 0:00:08]} 50. Nf6+ {[%emt 0:00:00]} Kf8 {[%emt 0:00:04]} 51. Nh7+ $1 {[%emt 0:00:00]} Ke8 {[%emt 0:00:08]} 52. Nf6+ {[%emt 0:00:00]} Kf8 {[%emt 0:00:05]} 1/2-1/2

[Event "Mitropa Cup Open 2024"]
[Site "Apolda"]
[Date "2024.02.18"]
[Round "4.7"]
[White "Vanczak, Tamas"]
[Black "Carnicelli, Valerio"]
[Result "1/2-1/2"]
[ECO "B48"]
[WhiteElo "2431"]
[BlackElo "2427"]
[Annotator "RC"]
[PlyCount "135"]
[EventDate "2024.02.15"]
[EventType "team-tourn"]
[EventCountry "GER"]
[SourceTitle "playchess.com"]
[Source "ChessBase"]
[SourceQuality "1"]
[WhiteTeam "Hungary"]
[BlackTeam "Italy"]
[WhiteTeamCountry "HUN"]
[BlackTeamCountry "ITA"]
[TimeControl "40/5400+30:1800+30"]

1. e4 {[%emt 0:00:05]} c5 {[%emt 0:00:04]} 2. Nf3 {[%emt 0:00:07]} e6 {[%emt 0:00:05]} 3. d4 {[%emt 0:00:08]} cxd4 {[%emt 0:00:05]} 4. Nxd4 {[%emt 0:00:07]} Nc6 {[%emt 0:00:03]} 5. Nc3 {[%emt 0:00:09]} Qc7 {[%emt 0:00:05]} 6. Be3 {[%emt 0:00:20]} a6 {[%emt 0:00:05]} 7. Qf3 {[%emt 0:00:19]} b5 {[%emt 0:00:26]} 8. Qg3 {[%emt 0:04:59]} Qxg3 {[%emt 0:00:24]} 9. hxg3 {[%emt 0:00:06]} Bb7 {[%emt 0:00:10]} 10. Nb3 {[%emt 0:00:38]} Nf6 {[%emt 0:00:18]} 11. f3 {[%emt 0:01:17]} d5 {[%emt 0:00:08]} 12. exd5 {[%emt 0:03:50]} Nb4 {[%emt 0:00:08]} 13. O-O-O {[%emt 0:01:55]} Nfxd5 {[%emt 0:00:57]} 14. Nxd5 {[%emt 0:00:21]} Bxd5 {[%emt 0:02:42]} 15. Kb1 {[%emt 0:00:18]} f6 {[%emt 0:03:06]} 16. c3 {[%emt 0:02:11]} Nc6 {[%emt 0:06:06]} 17. Bd3 {[%emt 0:06:57]} Kf7 {[%emt 0:06:44]} 18. g4 {[%emt 0:07:58]} Rd8 {[%emt 0:07:21]} 19. Nc5 {[%emt 0:08:54]} Ne5 {[%emt 0:05:21]} 20. Bc2 {[%emt 0:05:22]} Nc4 {[%emt 0:04:01]} 21. Bd4 {[%emt 0:06:37]} a5 {[%emt 0:03:00]} 22. Ne4 {[%emt 0:10:09]} Be7 {[%emt 0:04:52]} 23. Ng3 {[%emt 0:07:59]} h6 {[%emt 0:11:08]} 24. Nh5 {[%emt 0:05:06]} Bd6 {[%emt 0:02:52]} 25. Rhe1 {[%emt 0:04:05]} Bc7 {[%emt 0:03:28]} 26. Bd3 {[%emt 0:02:40]} a4 {[%emt 0:04:02]} 27. a3 {[%emt 0:08:20]} Rd7 {[%emt 0:01:54]} 28. Re2 {[%emt 0:05:05]} Rhd8 {[%emt 0:03:04]} 29. f4 {[%emt 0:01:21]} e5 {[%emt 0:08:21]} 30. fxe5 {[%emt 0:00:07]} Bxe5 {[%emt 0:00:38]} 31. Rf1 {[%emt 0:04:09]} Be6 {[%emt 0:11:30]} 32. Bf5 {[%emt 0:02:56]} Bxf5+ {[%emt 0:00:50]} 33. Rxf5 {[%emt 0:00:43]} Bxd4 {[%emt 0:05:57]} 34. cxd4 {[%emt 0:00:05]} Rd5 {[%emt 0:00:34]} 35. g3 {[%emt 0:02:00]} Rxf5 {[%emt 0:01:41]} 36. gxf5 {[%emt 0:00:02]} Rxd4 {[%emt 0:00:35]} 37. Nf4 {[%emt 0:00:25]} Re4 {[%emt 0:02:25]} 38. Kc2 {[%emt 0:00:45]} Rxe2+ {[%emt 0:00:53]} 39. Nxe2 {[%emt 0:00:01]} Ne3+ {[%emt 0:00:32]} 40. Kc3 {[%emt 0:00:27]} Nxf5 {[%emt 0:01:02]} 41. Kb4 {[%emt 0:30:34]} Nd6 {[%emt 0:32:47]} 42. Kc5 {[%emt 0:00:00]} Ke7 {[%emt 0:00:00]} 43. g4 {[%emt 0:00:00]} Nc4 {[%emt 0:00:00]} 44. Kxb5 {[%emt 0:00:00]} Nxb2 {[%emt 0:00:00]} 45. Nf4 {[%emt 0:00:00]} g5 {[%emt 0:00:00]} 46. Nh5 {[%emt 0:00:00]} Ke6 {[%emt 0:00:00]} 47. Kb4 {[%emt 0:00:00]} Ke5 {[%emt 0:00:00]} 48. Kc3 {[%emt 0:00:00]} Nd1+ {[%emt 0:00:00]} 49. Kb4 {[%emt 0:00:00]} Ne3 {[%emt 0:00:00]} 50. Kxa4 {[%emt 0:00:00]} Nxg4 {[%emt 0:00:00]} 51. Kb5 {[%emt 0:00:23]} Ne3 {[%emt 0:01:08]} 52. a4 {[%emt 0:00:32]} Nd5 {[%emt 0:00:09]} 53. Kc5 {[%emt 0:01:03]} f5 {[%emt 0:04:32]} 54. a5 {[%emt 0:00:21]} Nc7 {[%emt 0:00:22]} 55. Kc6 {[%emt 0:01:06]} Na6 {[%emt 0:00:08]} 56. Kb6 {[%emt 0:00:37]} Nb4 {[%emt 0:00:08]} 57. Kc5 {[%emt 0:01:44]} Nd3+ {[%emt 0:01:35]} 58. Kb6 {[%emt 0:01:18]} Nb4 {[%emt 0:00:30]} 59. Kc5 {[%emt 0:00:10]} Nd5 {[%emt 0:00:30]} 60. a6 {[%emt 0:00:21]} f4 {[%emt 0:00:32]} 61. a7 {[%emt 0:00:18]} Nc7 {[%emt 0:00:02]} 62. Kc6 {[%emt 0:00:27]} Na8 {[%emt 0:00:04]} 63. Kb7 {[%emt 0:00:11]} Kd6 {[%emt 0:00:13]} 64. Kxa8 {[%emt 0:01:35]} Kc7 {[%emt 0:00:01]} 65. Nf6 {[%emt 0:00:10]} f3 {[%emt 0:00:31]} 66. Nd5+ {[%emt 0:00:18]} Kc8 {[%emt 0:00:23]} 67. Nb6+ {[%emt 0:00:10]} Kc7 {[%emt 0:00:03]} 68. Nd5+ {[%emt 0:00:04]} 1/2-1/2

[Event "Mitropa Cup Open 2024"]
[Site "Apolda"]
[Date "2024.02.18"]
[Round "4.8"]
[White "Perossa, Nicolas"]
[Black "Karacsonyi, Gellert"]
[Result "1-0"]
[ECO "C13"]
[WhiteElo "2277"]
[BlackElo "2398"]
[Annotator "RC"]
[PlyCount "183"]
[EventDate "2024.02.15"]
[EventType "team-tourn"]
[EventCountry "GER"]
[SourceTitle "playchess.com"]
[Source "ChessBase"]
[SourceQuality "1"]
[WhiteTeam "Italy"]
[BlackTeam "Hungary"]
[WhiteTeamCountry "ITA"]
[BlackTeamCountry "HUN"]
[TimeControl "40/5400+30:1800+30"]

1. e4 {[%emt 0:00:02]} e6 {[%emt 0:00:09]} 2. d4 {[%emt 0:00:05]} d5 {[%emt 0:00:09]} 3. Nc3 {[%emt 0:00:07]} Nf6 {[%emt 0:00:12]} 4. Bg5 {[%emt 0:00:14]} dxe4 {[%emt 0:02:48]} 5. Nxe4 {[%emt 0:00:09]} Be7 {[%emt 0:00:03]} 6. Bxf6 {[%emt 0:00:10]} gxf6 {[%emt 0:00:05]} 7. Nf3 {[%emt 0:00:07]} f5 {[%emt 0:00:04]} 8. Nc3 {[%emt 0:00:08]} a6 {[%emt 0:00:45]} 9. g3 {[%emt 0:00:36]} b5 {[%emt 0:01:00]} 10. Bg2 {[%emt 0:00:12]} Bb7 {[%emt 0:00:08]} 11. O-O {[%emt 0:05:44]} O-O {[%emt 0:00:15]} 12. Qe2 {[%emt 0:30:19]} b4 {[%emt 0:05:12]} 13. Na4 {[%emt 0:00:20]} Bc6 {[%emt 0:25:08]} 14. Nc5 {[%emt 0:05:19]} Bxc5 {[%emt 0:06:22]} 15. dxc5 {[%emt 0:00:01]} Bb5 {[%emt 0:01:51]} 16. Qe3 {[%emt 0:00:00]} Bxf1 {[%emt 0:00:18]} 17. Rxf1 {[%emt 0:26:10]} c6 {[%emt 0:06:01]} 18. Ne5 {[%emt 0:09:05]} Qe7 {[%emt 0:05:09]} 19. Rd1 {[%emt 0:05:18]} Rd8 {[%emt 0:06:09]} 20. Rd6 {[%emt 0:00:44]} Rxd6 {[%emt 0:22:11]} 21. cxd6 {[%emt 0:00:02]} Qxd6 {[%emt 0:00:13]} 22. Qg5+ {[%emt 0:00:22]} Kf8 {[%emt 0:00:08]} 23. Qf6 {[%emt 0:00:10]} Ra7 {[%emt 0:00:28]} 24. Qh8+ {[%emt 0:15:31]} Ke7 {[%emt 0:00:02]} 25. Qxb8 {[%emt 0:01:20]} Qxb8 {[%emt 0:00:01]} 26. Nxc6+ {[%emt 0:00:05]} Kd6 {[%emt 0:00:01]} 27. Nxb8 {[%emt 0:00:06]} a5 {[%emt 0:11:37]} 28. Nc6 {[%emt 0:00:01]} Ra6 {[%emt 0:00:06]} 29. Nd4 {[%emt 0:01:44]} a4 {[%emt 0:00:01]} 30. Kf1 {[%emt 0:00:43]} Kc5 {[%emt 0:04:10]} 31. Nf3 {[%emt 0:00:01]} f6 {[%emt 0:03:13]} 32. Ke2 {[%emt 0:00:19]} Rd6 {[%emt 0:00:22]} 33. Nd2 {[%emt 0:01:03]} Kd4 {[%emt 0:00:13]} 34. Nf3+ {[%emt 0:00:10]} Kc5 {[%emt 0:00:07]} 35. Nd2 {[%emt 0:00:08]} Kd4 {[%emt 0:00:06]} 36. Bf1 {[%emt 0:01:10]} Rc6 {[%emt 0:01:37]} 37. Kd1 {[%emt 0:00:25]} Rd6 {[%emt 0:00:31]} 38. Bd3 {[%emt 0:00:23]} Kc5 {[%emt 0:01:27]} 39. g4 {[%emt 0:00:43]} Rd5 {[%emt 0:01:03]} 40. gxf5 {[%emt 0:00:07]} exf5 {[%emt 0:00:12]} 41. Nf1 {[%emt 0:12:45]} f4 {[%emt 0:03:45]} 42. Nd2 {[%emt 0:00:06]} Rh5 {[%emt 0:00:40]} 43. Nf3 {[%emt 0:00:07]} h6 {[%emt 0:00:37]} 44. Kd2 {[%emt 0:01:58]} Rd5 {[%emt 0:00:25]} 45. Ke2 {[%emt 0:01:42]} Rd8 {[%emt 0:00:58]} 46. Kd2 {[%emt 0:05:50]} Rg8 {[%emt 0:01:08]} 47. h3 {[%emt 0:03:40]} Rg7 {[%emt 0:01:55]} 48. h4 {[%emt 0:02:48]} Rd7 {[%emt 0:01:20]} 49. c3 {[%emt 0:03:25]} Rg7 {[%emt 0:05:09]} 50. cxb4+ {[%emt 0:01:01]} Kxb4 {[%emt 0:00:02]} 51. Nd4 {[%emt 0:00:24]} Rg2 {[%emt 0:01:30]} 52. Ke2 {[%emt 0:00:22]} Rg1 {[%emt 0:00:01]} 53. b3 {[%emt 0:02:27]} a3 {[%emt 0:01:31]} 54. Kd2 {[%emt 0:00:26]} Rg2 {[%emt 0:00:14]} 55. Nc2+ {[%emt 0:00:05]} Kc5 {[%emt 0:00:19]} 56. Ke2 {[%emt 0:00:22]} Rh2 {[%emt 0:00:04]} 57. Nxa3 {[%emt 0:01:21]} Rxh4 {[%emt 0:00:02]} 58. Kf3 {[%emt 0:00:36]} Rh3+ {[%emt 0:00:23]} 59. Ke2 {[%emt 0:00:05]} Kb4 {[%emt 0:00:40]} 60. Nc2+ {[%emt 0:00:41]} Kc3 {[%emt 0:00:16]} 61. Bg6 {[%emt 0:00:47]} Rh1 {[%emt 0:02:52]} 62. Ne1 {[%emt 0:00:13]} Rg1 {[%emt 0:00:22]} 63. Bf7 {[%emt 0:00:35]} Rg7 {[%emt 0:00:23]} 64. Bc4 {[%emt 0:00:02]} h5 {[%emt 0:00:23]} 65. Nf3 {[%emt 0:00:13]} Rh7 {[%emt 0:01:08]} 66. Nh4 {[%emt 0:00:05]} Rg7 {[%emt 0:00:09]} 67. Kf3 {[%emt 0:00:11]} Kb4 {[%emt 0:03:56]} 68. a4 {[%emt 0:00:16]} Rg1 {[%emt 0:02:11]} 69. Ng2 {[%emt 0:00:54]} Ka5 {[%emt 0:00:51]} 70. Be6 {[%emt 0:01:25]} Kb4 {[%emt 0:01:11]} 71. Nxf4 {[%emt 0:00:34]} h4 {[%emt 0:00:12]} 72. Nh3 {[%emt 0:00:28]} Rg7 {[%emt 0:00:06]} 73. Kf4 {[%emt 0:00:27]} Rg6 {[%emt 0:01:28]} 74. Kf5 {[%emt 0:00:14]} Rh6 {[%emt 0:00:01]} 75. Kg4 {[%emt 0:01:03]} Ka5 {[%emt 0:00:16]} 76. Nf4 {[%emt 0:00:12]} f5+ {[%emt 0:00:54]} 77. Kh3 {[%emt 0:00:43]} Kb4 {[%emt 0:00:05]} 78. Bc4 {[%emt 0:00:12]} Rh7 {[%emt 0:00:13]} 79. Nd5+ {[%emt 0:00:08]} Kc5 {[%emt 0:00:14]} 80. a5 {[%emt 0:00:15]} Rh8 {[%emt 0:00:20]} 81. a6 {[%emt 0:00:09]} Rh7 {[%emt 0:00:16]} 82. Nf6 {[%emt 0:00:38]} Rg7 {[%emt 0:00:12]} 83. Kxh4 {[%emt 0:00:13]} Kb6 {[%emt 0:00:36]} 84. Nd5+ {[%emt 0:01:33]} Ka7 {[%emt 0:00:10]} 85. Ne3 {[%emt 0:00:43]} f4 {[%emt 0:00:08]} 86. Nd5 {[%emt 0:00:21]} Rg2 {[%emt 0:00:08]} 87. f3 {[%emt 0:00:24]} Rg3 {[%emt 0:00:04]} 88. Be2 {[%emt 0:00:06]} Rg2 {[%emt 0:00:03]} 89. Nxf4 {[%emt 0:00:05]} Rg1 {[%emt 0:00:05]} 90. Bc4 {[%emt 0:00:20]} Kb6 {[%emt 0:00:06]} 91. Kh3 {[%emt 0:00:23]} Rg7 {[%emt 0:00:07]} 92. Ne6 {[%emt 0:00:23]} 1-0